[Event "GM ZIA Smirity-A 2025"]
[Site "Dhaka"]
[Date "2025.02.19"]
[Round "5.14"]
[White "Masum, Hossain"]
[Black "Tahmidul, Haque"]
[Result "1-0"]
[Annotator "NA"]
[ECO "D30"]
[WhiteElo "2011"]
[BlackElo "2016"]
[PlyCount "89"]
[EventDate "2025.02.17"]
[EventType "swiss"]
[EventCountry "BAN"]
[SourceTitle "playchess.com"]
[Source "ChessBase"]
[SourceQuality "1"]
[TimeControl "5400+30"]

1. d4 {[%emt 0:01:34]} d5 {[%emt 0:00:06]} 2. c4 {[%emt 0:00:01]} e6 {[%emt 0:00:07]} 3. Nc3 {[%emt 0:00:02]} c5 {[%emt 0:00:08]} 4. cxd5 {[%emt 0:00:04]} exd5 {[%emt 0:00:05]} 5. Nf3 {[%emt 0:00:13]} Nc6 {[%emt 0:00:06]} 6. g3 {[%emt 0:00:31]} Nf6 {[%emt 0:00:06]} 7. Bg2 {[%emt 0:00:15]} Be7 {[%emt 0:00:08]} 8. O-O {[%emt 0:00:27]} O-O {[%emt 0:00:07]} 9. Be3 {[%emt 0:02:18]} c4 {[%emt 0:10:14]} 10. Ne5 {[%emt 0:01:09]} Bb4 {[%emt 0:01:24]} 11. Bg5 {[%emt 0:00:45]} Bxc3 {[%emt 0:03:19]} 12. bxc3 {[%emt 0:00:14]} Be6 {[%emt 0:00:08]} 13. Rb1 {[%emt 0:00:57]} h6 {[%emt 0:00:39]} 14. Bf4 {[%emt 0:18:00]} Qe7 {[%emt 0:01:31]} 15. Qc2 {[%emt 0:00:52]} Rfd8 {[%emt 0:09:11]} 16. f3 {[%emt 0:06:13]} Ne8 {[%emt 0:03:35]} 17. e4 {[%emt 0:07:47]} Nxe5 {[%emt 0:03:02]} 18. Bxe5 {[%emt 0:00:36]} g5 {[%emt 0:00:48]} 19. f4 {[%emt 0:04:55]} f6 {[%emt 0:01:04]} 20. exd5 {[%emt 0:00:02]} Bxd5 {[%emt 0:00:26]} 21. Qg6+ {[%emt 0:00:12]} Qg7 {[%emt 0:00:16]} 22. Bxd5+ {[%emt 0:00:35]} Rxd5 {[%emt 0:00:04]} 23. Qxg7+ {[%emt 0:00:42]} Kxg7 {[%emt 0:00:08]} 24. Rb2 {[%emt 0:54:06]} b6 25. Rxb6 {[%emt 0:00:00]} Kg8 {[%emt 0:12:03]} 26. Rb7 {[%emt 0:00:00]} Rc5 {[%emt 0:54:45]} 27. Bb8 Ra5 {[%emt 0:00:00]} 28. fxg5 {[%emt 0:00:00]} hxg5 {[%emt 0:00:00]} 29. Re1 {[%emt 0:00:00]} Kf8 {[%emt 0:00:00]} 30. h4 {[%emt 0:00:00]} gxh4 {[%emt 0:00:00]} 31. gxh4 {[%emt 0:00:00]} Rxa2 {[%emt 0:00:00]} 32. Bf4 {[%emt 0:00:00]} Ra5 {[%emt 0:00:00]} 33. Kg2 {[%emt 0:00:00]} Rh5 {[%emt 0:00:00]} 34. Kg3 {[%emt 0:00:00]} a5 {[%emt 0:00:00]} 35. Kg4 {[%emt 0:00:00]} Rh8 {[%emt 0:00:00]} 36. Bc1 {[%emt 0:00:00]} f5+ {[%emt 0:00:00]} 37. Kh3 {[%emt 0:00:00]} Ng7 {[%emt 0:00:00]} 38. Ba3+ {[%emt 0:00:00]} Kg8 {[%emt 0:00:00]} 39. Rg1 {[%emt 0:00:00]} Rh7 {[%emt 0:00:00]} 40. Bd6 {[%emt 0:00:00]} a4 {[%emt 0:00:00]} 41. Be5 {[%emt 0:00:00]} a3 {[%emt 0:00:00]} 42. Bxg7 {[%emt 0:00:00]} a2 {[%emt 0:00:00]} 43. Be5+ {[%emt 0:00:00]} Kf8 {[%emt 0:00:00]} 44. Rxh7 {[%emt 0:00:00]} a1=Q {[%emt 0:00:00]} 45. Bd6+ {[%emt 0:00:00]} 1-0

[Event "GM ZIA Smirity-A 2025"]
[Site "Dhaka"]
[Date "2025.02.19"]
[Round "5.15"]
[White "Abrar, Reazul Ahnaf Mohamma"]
[Black "Neelava, Choudhury"]
[Result "0-1"]
[Annotator "NA"]
[ECO "C88"]
[WhiteElo "1771"]
[BlackElo "1784"]
[PlyCount "107"]
[EventDate "2025.02.17"]
[EventType "swiss"]
[EventCountry "BAN"]
[SourceTitle "playchess.com"]
[Source "ChessBase"]
[SourceQuality "1"]
[TimeControl "5400+30"]

1. e4 {[%emt 0:00:05]} e5 {[%emt 0:00:16]} 2. Nf3 {[%emt 0:00:07]} Nc6 {[%emt 0:00:04]} 3. Bb5 {[%emt 0:00:05]} a6 {[%emt 0:00:08]} 4. Ba4 {[%emt 0:00:03]} Nf6 {[%emt 0:00:06]} 5. O-O {[%emt 0:00:10]} Be7 {[%emt 0:00:57]} 6. Re1 {[%emt 0:00:08]} b5 {[%emt 0:00:03]} 7. Bb3 {[%emt 0:00:04]} O-O {[%emt 0:00:04]} 8. a4 {[%emt 0:01:33]} Bb7 {[%emt 0:00:39]} 9. d3 {[%emt 0:00:05]} d6 {[%emt 0:00:25]} 10. Nc3 {[%emt 0:01:26]} b4 {[%emt 0:05:27]} 11. Nd5 {[%emt 0:01:00]} Nxd5 {[%emt 0:00:11]} 12. Bxd5 {[%emt 0:01:26]} Na5 {[%emt 0:03:53]} 13. Bxb7 {[%emt 0:07:05]} Nxb7 {[%emt 0:00:09]} 14. d4 {[%emt 0:03:00]} exd4 {[%emt 0:09:05]} 15. Qxd4 {[%emt 0:00:04]} a5 {[%emt 0:03:42]} 16. Qd5 {[%emt 0:00:27]} Nc5 {[%emt 0:03:30]} 17. Be3 {[%emt 0:02:42]} Nd7 {[%emt 0:02:25]} 18. Rad1 {[%emt 0:13:30]} Bf6 {[%emt 0:06:15]} 19. Bd4 {[%emt 0:03:11]} Re8 {[%emt 0:06:12]} 20. Bxf6 {[%emt 0:16:00]} Qxf6 {[%emt 0:01:58]} 21. Qc6 {[%emt 0:04:08]} Ne5 {[%emt 0:04:24]} 22. Nxe5 {[%emt 0:01:01]} Qxe5 {[%emt 0:00:45]} 23. b3 {[%emt 0:04:00]} h6 {[%emt 0:05:34]} 24. Qxc7 {[%emt 0:03:17]} Rac8 {[%emt 0:00:39]} 25. Qxd6 {[%emt 0:01:00]} Qxd6 {[%emt 0:00:07]} 26. Rxd6 {[%emt 0:00:08]} Rxc2 {[%emt 0:00:17]} 27. g3 {[%emt 0:07:33]} Rc3 {[%emt 0:01:48]} 28. Ra6 {[%emt 0:01:01]} Rxb3 {[%emt 0:00:23]} 29. Rxa5 {[%emt 0:00:29]} Ra3 {[%emt 0:00:07]} 30. e5 {[%emt 0:02:53]} Rc8 {[%emt 0:12:47]} 31. Rb1 {[%emt 0:02:20]} Rc4 {[%emt 0:01:42]} 32. f4 {[%emt 0:02:28]} Ra2 {[%emt 0:00:21]} 33. Ra8+ {[%emt 0:06:28]} Kh7 {[%emt 0:00:39]} 34. a5 {[%emt 0:00:49]} Rcc2 {[%emt 0:00:06]} 35. h4 {[%emt 0:00:38]} b3 {[%emt 0:00:08]} 36. Rd8 {[%emt 0:02:05]} b2 {[%emt 0:00:56]} 37. Rdd1 {[%emt 0:00:31]} Rxa5 {[%emt 0:00:09]} 38. g4 {[%emt 0:06:28]} Rac5 {[%emt 0:00:07]} 39. Kf1 {[%emt 0:03:09]} Rc1 {[%emt 0:00:13]} 40. Ke2 {[%emt 0:00:45]} R5c2+ {[%emt 0:04:09]} 41. Kd3 {[%emt 0:00:20]} Rc7 {[%emt 0:06:15]} 42. Ke2 {[%emt 0:02:29]} R7c2+ {[%emt 0:00:08]} 43. Kd3 {[%emt 0:00:05]} Rxb1 {[%emt 0:00:20]} 44. Rxb1 {[%emt 0:00:17]} Rg2 {[%emt 0:00:40]} 45. g5 {[%emt 0:01:29]} hxg5 {[%emt 0:00:06]} 46. hxg5 {[%emt 0:00:31]} Kg6 {[%emt 0:25:11]} 47. Kc3 {[%emt 0:01:05]} Rf2 {[%emt 0:00:00]} 48. Rxb2 {[%emt 0:00:09]} Rxb2 {[%emt 0:00:00]} 49. Kxb2 {[%emt 0:00:06]} Kf5 {[%emt 0:00:00]} 50. Kc3 {[%emt 0:00:30]} g6 {[%emt 0:00:00]} 51. Kd4 {[%emt 0:00:20]} Kxf4 {[%emt 0:00:00]} 52. Kd5 {[%emt 0:00:09]} Kxg5 {[%emt 0:00:00]} 53. Kd6 {[%emt 0:06:08]} Kf5 {[%emt 0:03:30]} 54. Ke7 {[%emt 0:00:00]} 0-1

[Event "GM ZIA Smirity-A 2025"]
[Site "Dhaka"]
[Date "2025.02.20"]
[Round "6.1"]
[White "Md Minhaz Uddin"]
[Black "Zia, Tahsin Tajwar"]
[Result "1/2-1/2"]
[Annotator "RC"]
[ECO "B70"]
[WhiteElo "2230"]
[BlackElo "2323"]
[PlyCount "67"]
[EventDate "2025.02.17"]
[EventType "swiss"]
[EventCountry "BAN"]
[SourceTitle "playchess.com"]
[Source "ChessBase"]
[SourceQuality "1"]
[TimeControl "5400+30"]

1. e4 {[%emt 0:01:59]} c5 {[%emt 0:00:15]} 2. Nf3 {[%emt 0:00:13]} Nc6 {[%emt 0:00:06]} 3. d4 {[%emt 0:00:10]} cxd4 {[%emt 0:00:05]} 4. Nxd4 {[%emt 0:00:03]} g6 {[%emt 0:00:07]} 5. Nc3 {[%emt 0:02:46]} Bg7 {[%emt 0:00:06]} 6. Nxc6 {[%emt 0:01:36]} bxc6 {[%emt 0:00:08]} 7. Bc4 {[%emt 0:00:03]} Qc7 {[%emt 0:00:12]} 8. O-O {[%emt 0:00:04]} Nf6 {[%emt 0:00:05]} 9. Re1 {[%emt 0:00:20]} d6 {[%emt 0:00:12]} 10. h3 {[%emt 0:00:07]} O-O {[%emt 0:01:35]} 11. Bg5 {[%emt 0:00:03]} h6 {[%emt 0:01:01]} 12. Bh4 {[%emt 0:01:22]} a5 {[%emt 0:00:22]} 13. Bb3 {[%emt 0:04:48]} Kh7 {[%emt 0:02:47]} 14. Qd2 {[%emt 0:07:57]} e5 {[%emt 0:10:39]} 15. Rad1 {[%emt 0:13:59]} Ne8 {[%emt 0:01:28]} 16. f3 {[%emt 0:02:23]} f5 {[%emt 0:07:15]} 17. Na4 {[%emt 0:00:13]} f4 {[%emt 0:05:20]} 18. c4 {[%emt 0:00:12]} g5 {[%emt 0:08:01]} 19. Bf2 {[%emt 0:00:02]} c5 {[%emt 0:00:07]} 20. Nc3 {[%emt 0:01:10]} Be6 {[%emt 0:02:41]} 21. Ba4 {[%emt 0:15:33]} Rd8 {[%emt 0:03:17]} 22. Nd5 {[%emt 0:00:25]} Qa7 {[%emt 0:01:42]} 23. Kf1 {[%emt 0:01:49]} Nc7 {[%emt 0:06:30]} 24. Qc2 {[%emt 0:04:58]} Nxd5 25. Rxd5 {[%emt 0:00:02]} Bf6 {[%emt 0:02:26]} 26. Rd3 {[%emt 0:02:48]} Qc7 {[%emt 0:00:43]} 27. Red1 {[%emt 0:00:58]} h5 {[%emt 0:00:44]} 28. Ke2 {[%emt 0:00:47]} Kg6 {[%emt 0:01:08]} 29. Kd2 {[%emt 0:03:08]} g4 {[%emt 0:19:30]} 30. hxg4 {[%emt 0:00:13]} hxg4 {[%emt 0:00:06]} 31. Kc1 {[%emt 0:35:49]} Rh8 32. Be1 {[%emt 0:00:30]} g3 {[%emt 0:27:52]} 33. Kd2 Rhf8 {[%emt 0:00:30]} 34. Bf2 {[%emt 0:01:00]} 1/2-1/2

[Event "GM ZIA Smirity-A 2025"]
[Site "Dhaka"]
[Date "2025.02.20"]
[Round "6.2"]
[White "Sakline Mostafa, Sajid"]
[Black "Islam, Khandaker Aminul"]
[Result "1-0"]
[Annotator "RC"]
[ECO "A13"]
[WhiteElo "2199"]
[BlackElo "2169"]
[PlyCount "80"]
[EventDate "2025.02.17"]
[EventType "swiss"]
[EventCountry "BAN"]
[SourceTitle "playchess.com"]
[Source "ChessBase"]
[SourceQuality "1"]
[TimeControl "5400+30"]

1. Nf3 {[%emt 0:01:34]} Nf6 {[%emt 0:00:15]} 2. e3 {[%emt 0:00:13]} b6 {[%emt 0:01:54]} 3. c4 {[%emt 0:00:53]} Bb7 {[%emt 0:00:16]} 4. Nc3 {[%emt 0:00:06]} e6 {[%emt 0:00:13]} 5. b3 {[%emt 0:00:27]} Be7 {[%emt 0:00:19]} 6. Bb2 {[%emt 0:00:02]} O-O {[%emt 0:00:12]} 7. Be2 {[%emt 0:01:00]} d5 {[%emt 0:00:25]} 8. O-O {[%emt 0:00:19]} Nbd7 {[%emt 0:00:44]} 9. a4 {[%emt 0:03:23]} a5 {[%emt 0:02:37]} 10. d4 {[%emt 0:00:15]} Re8 {[%emt 0:05:35]} 11. Rc1 {[%emt 0:06:41]} Rc8 {[%emt 0:07:58]} 12. Bd3 {[%emt 0:03:17]} Bf8 {[%emt 0:01:10]} 13. Ne5 {[%emt 0:05:31]} dxc4 {[%emt 0:00:42]} 14. Bxc4 {[%emt 0:02:24]} Nxe5 {[%emt 0:00:52]} 15. dxe5 {[%emt 0:00:28]} Nd7 {[%emt 0:00:25]} 16. f4 {[%emt 0:01:40]} Nc5 {[%emt 0:00:40]} 17. Qe2 {[%emt 0:05:56]} Qh4 {[%emt 0:12:08]} 18. Rcd1 {[%emt 0:07:11]} Red8 {[%emt 0:10:56]} 19. Rd4 {[%emt 0:01:12]} Rd7 {[%emt 0:01:24]} 20. Nb5 {[%emt 0:05:28]} Qd8 {[%emt 0:15:49]} 21. Ba3 {[%emt 0:17:07]} Bd5 {[%emt 0:00:55]} 22. Rfd1 {[%emt 0:05:59]} c6 {[%emt 0:06:28]} 23. Nc3 {[%emt 0:13:10]} Nxb3 {[%emt 0:03:03]} 24. Bxb3 {[%emt 0:00:01]} Bxa3 {[%emt 0:00:32]} 25. e4 {[%emt 0:04:45]} Bc5 {[%emt 0:18:57]} 26. exd5 {[%emt 0:00:07]} Bxd4+ {[%emt 0:00:30]} 27. Rxd4 {[%emt 0:00:03]} exd5 {[%emt 0:00:26]} 28. Qg4 {[%emt 0:04:38]} Rcc7 {[%emt 0:03:04]} 29. f5 {[%emt 0:04:02]} f6 {[%emt 0:00:44]} 30. e6 {[%emt 0:00:34]} Qe7 {[%emt 0:00:08]} 31. h3 {[%emt 0:02:36]} Rd8 {[%emt 0:00:40]} 32. Qf4 {[%emt 0:00:41]} Rcc8 {[%emt 0:00:08]} 33. Qd2 {[%emt 0:01:04]} Re8 {[%emt 0:03:25]} 34. Rg4 {[%emt 0:01:20]} Kh8 {[%emt 0:00:05]} 35. Ne2 {[%emt 0:00:14]} g5 {[%emt 0:01:33]} 36. fxg6 {[%emt 0:00:59]} Qxe6 {[%emt 0:00:17]} 37. Nf4 {[%emt 0:00:49]} Qe1+ {[%emt 0:03:31]} 38. Qxe1 Rxe1+ 39. Kf2 Re7 40. gxh7 {[%emt 0:04:21]} Rg7 {[%emt 0:01:30]} 1-0

[Event "GM ZIA Smirity-A 2025"]
[Site "Dhaka"]
[Date "2025.02.20"]
[Round "6.3"]
[White "Wadifa, Ahmed"]
[Black "Mohammad, Javed"]
[Result "0-1"]
[Annotator "RC"]
[ECO "B45"]
[WhiteElo "2053"]
[BlackElo "2139"]
[PlyCount "124"]
[EventDate "2025.02.17"]
[EventType "swiss"]
[EventCountry "BAN"]
[SourceTitle "playchess.com"]
[Source "ChessBase"]
[SourceQuality "1"]
[TimeControl "5400+30"]

1. e4 {[%emt 0:08:40]} c5 {[%emt 0:00:13]} 2. Nf3 {[%emt 0:00:08]} Nc6 {[%emt 0:00:35]} 3. d4 {[%emt 0:00:06]} cxd4 {[%emt 0:00:10]} 4. Nxd4 {[%emt 0:00:05]} Nf6 {[%emt 0:00:19]} 5. Nc3 {[%emt 0:00:06]} e6 {[%emt 0:01:19]} 6. Ndb5 {[%emt 0:00:10]} Bb4 {[%emt 0:00:55]} 7. a3 {[%emt 0:00:07]} Bxc3+ {[%emt 0:00:54]} 8. Nxc3 {[%emt 0:00:09]} d5 {[%emt 0:00:34]} 9. exd5 {[%emt 0:00:06]} exd5 {[%emt 0:00:06]} 10. Bd3 {[%emt 0:00:05]} O-O {[%emt 0:00:16]} 11. O-O {[%emt 0:00:07]} d4 {[%emt 0:00:03]} 12. Ne2 {[%emt 0:08:21]} Bg4 {[%emt 0:00:31]} 13. f3 {[%emt 0:02:45]} Bh5 {[%emt 0:03:08]} 14. Nf4 {[%emt 0:00:12]} Qd6 {[%emt 0:07:51]} 15. c3 {[%emt 0:12:25]} Rad8 {[%emt 0:03:00]} 16. Qc2 {[%emt 0:01:23]} Bg6 {[%emt 0:02:52]} 17. Nxg6 {[%emt 0:04:56]} hxg6 {[%emt 0:00:33]} 18. Rd1 {[%emt 0:01:20]} dxc3 {[%emt 0:11:12]} 19. Qxc3 {[%emt 0:00:51]} Nd5 {[%emt 0:24:01]} 20. Qb3 {[%emt 0:19:50]} Qc5+ {[%emt 0:04:32]} 21. Kh1 {[%emt 0:00:27]} Nd4 {[%emt 0:01:47]} 22. Qc4 {[%emt 0:06:30]} Qxc4 {[%emt 0:05:09]} 23. Bxc4 {[%emt 0:00:02]} Nb6 {[%emt 0:07:57]} 24. Bd3 {[%emt 0:03:49]} Nb3 {[%emt 0:05:34]} 25. Rb1 {[%emt 0:00:12]} Nc5 {[%emt 0:01:10]} 26. Bc2 {[%emt 0:02:23]} Rxd1+ {[%emt 0:00:19]} 27. Bxd1 {[%emt 0:00:02]} Re8 {[%emt 0:00:18]} 28. Bd2 {[%emt 0:00:10]} Nc4 {[%emt 0:00:42]} 29. Bc3 {[%emt 0:03:51]} Re3 {[%emt 0:02:07]} 30. a4 {[%emt 0:08:14]} Nxb2 {[%emt 0:02:38]} 31. Bd2 {[%emt 0:03:19]} Nxd1 {[%emt 0:01:00]} 32. Bxe3 {[%emt 0:00:02]} Nxe3 {[%emt 0:00:36]} 33. Kg1 {[%emt 0:03:30]} b6 {[%emt 0:01:35]} 34. Rb4 {[%emt 0:01:52]} f5 {[%emt 0:01:14]} 35. Rd4 {[%emt 0:00:43]} g5 {[%emt 0:02:49]} 36. g3 {[%emt 0:00:26]} Kf7 {[%emt 0:00:49]} 37. Kf2 {[%emt 0:01:02]} Nc2 {[%emt 0:00:08]} 38. Rc4 {[%emt 0:00:20]} Nb4 {[%emt 0:00:09]} 39. Rc3 {[%emt 0:03:21]} a5 {[%emt 0:00:44]} 40. Ra3 {[%emt 0:00:35]} Ke6 {[%emt 0:02:19]} 41. Ke2 {[%emt 0:00:35]} Kd5 {[%emt 0:01:05]} 42. Kd2 {[%emt 0:00:16]} Kc4 {[%emt 0:02:23]} 43. Rc3+ {[%emt 0:00:02]} Kd4 {[%emt 0:00:20]} 44. Ra3 {[%emt 0:00:16]} f4 {[%emt 0:00:25]} 45. gxf4 {[%emt 0:00:14]} gxf4 {[%emt 0:00:02]} 46. h3 {[%emt 0:00:10]} Nc6 {[%emt 0:00:49]} 47. Kc2 {[%emt 0:01:10]} Ne5 {[%emt 0:00:20]} 48. h4 {[%emt 0:00:52]} Nc4 {[%emt 0:00:47]} 49. Ra1 {[%emt 0:00:13]} Ne3+ {[%emt 0:03:24]} 50. Kb2 {[%emt 0:00:23]} Nd3+ {[%emt 0:00:07]} 51. Kb3 {[%emt 0:00:17]} Nc5+ {[%emt 0:01:59]} 52. Kb2 {[%emt 0:00:12]} Kd3 {[%emt 0:00:14]} 53. Rg1 {[%emt 0:00:55]} Nxa4+ {[%emt 0:00:11]} 54. Ka3 {[%emt 0:00:02]} b5 {[%emt 0:00:11]} 55. Rxg7 {[%emt 0:00:11]} Kc3 {[%emt 0:01:01]} 56. h5 {[%emt 0:00:33]} Nc4+ {[%emt 0:00:18]} 57. Ka2 {[%emt 0:00:07]} b4 {[%emt 0:00:37]} 58. Rb7 {[%emt 0:00:57]} Nc5 {[%emt 0:01:02]} 59. Rb5 {[%emt 0:03:59]} b3+ {[%emt 0:00:37]} 60. Ka1 {[%emt 0:00:02]} Ne6 {[%emt 0:01:46]} 61. h6 {[%emt 0:00:24]} Nf8 {[%emt 0:00:05]} 62. Rb8 {[%emt 0:00:35]} Kc2 {[%emt 0:00:48]} 0-1

[Event "GM ZIA Smirity-A 2025"]
[Site "Dhaka"]
[Date "2025.02.20"]
[Round "6.4"]
[White "Abu Sufian, Shakil"]
[Black "Anata, Choudhury"]
[Result "1-0"]
[Annotator "RC"]
[ECO "B51"]
[WhiteElo "2224"]
[BlackElo "2206"]
[PlyCount "61"]
[EventDate "2025.02.17"]
[EventType "swiss"]
[EventCountry "BAN"]
[SourceTitle "playchess.com"]
[Source "ChessBase"]
[SourceQuality "1"]
[TimeControl "5400+30"]

1. e4 {[%emt 0:00:03]} c5 {[%emt 0:22:35]} 2. Nf3 {[%emt 0:00:13]} d6 {[%emt 0:00:09]} 3. Bb5+ {[%emt 0:00:05]} Nc6 {[%emt 0:00:13]} 4. O-O {[%emt 0:00:41]} Bd7 {[%emt 0:00:10]} 5. Re1 {[%emt 0:00:56]} Nf6 {[%emt 0:00:19]} 6. h3 {[%emt 0:05:39]} a6 {[%emt 0:02:31]} 7. Bf1 {[%emt 0:00:13]} Rg8 {[%emt 0:00:14]} 8. d4 {[%emt 0:04:36]} cxd4 {[%emt 0:00:13]} 9. Nxd4 {[%emt 0:00:05]} g5 {[%emt 0:00:11]} 10. Nxc6 {[%emt 0:13:53]} Bxc6 {[%emt 0:06:24]} 11. Nc3 {[%emt 0:00:33]} e6 {[%emt 0:04:50]} 12. g3 {[%emt 0:01:09]} Be7 {[%emt 0:02:03]} 13. Bg2 {[%emt 0:00:37]} h5 {[%emt 0:01:15]} 14. Be3 {[%emt 0:03:26]} g4 {[%emt 0:00:55]} 15. h4 {[%emt 0:00:09]} Nd7 {[%emt 0:00:11]} 16. Nd5 {[%emt 0:05:53]} Bxd5 {[%emt 0:08:38]} 17. exd5 {[%emt 0:00:05]} e5 {[%emt 0:00:11]} 18. Qd3 {[%emt 0:01:19]} Bf8 {[%emt 0:09:26]} 19. c4 {[%emt 0:02:12]} Qf6 {[%emt 0:01:58]} 20. b4 {[%emt 0:05:22]} b6 {[%emt 0:01:40]} 21. c5 {[%emt 0:09:05]} dxc5 {[%emt 0:10:26]} 22. d6 {[%emt 0:00:34]} Ra7 {[%emt 0:00:26]} 23. bxc5 {[%emt 0:00:20]} bxc5 {[%emt 0:00:18]} 24. Rad1 {[%emt 0:06:27]} Bh6 {[%emt 0:06:05]} 25. Bxh6 {[%emt 0:03:58]} Qxh6 {[%emt 0:00:03]} 26. Bc6 {[%emt 0:00:22]} Kf8 {[%emt 0:06:23]} 27. Qf5 {[%emt 0:14:04]} Nb8 {[%emt 0:01:14]} 28. d7 {[%emt 0:03:43]} Nxc6 {[%emt 0:01:40]} 29. d8=Q+ {[%emt 0:00:11]} Nxd8 {[%emt 0:00:14]} 30. Rxd8+ {[%emt 0:00:03]} Kg7 {[%emt 0:00:14]} 31. Qxe5+ {[%emt 0:00:07]} 1-0

[Event "GM ZIA Smirity-A 2025"]
[Site "Dhaka"]
[Date "2025.02.20"]
[Round "6.5"]
[White "Rahman, Syed Mahfuzur"]
[Black "Mehdi Hasan Parag"]
[Result "1-0"]
[Annotator "RC"]
[ECO "D18"]
[WhiteElo "2113"]
[BlackElo "2158"]
[PlyCount "59"]
[EventDate "2025.02.17"]
[EventType "swiss"]
[EventCountry "BAN"]
[SourceTitle "playchess.com"]
[Source "ChessBase"]
[SourceQuality "1"]
[TimeControl "5400+30"]

1. d4 {[%emt 0:20:18]} d5 {[%emt 0:00:07]} 2. c4 {[%emt 0:09:11]} c6 {[%emt 0:00:03]} 3. Nc3 {[%emt 0:00:04]} Nf6 {[%emt 0:00:06]} 4. Nf3 {[%emt 0:00:01]} dxc4 {[%emt 0:00:18]} 5. a4 {[%emt 0:00:08]} Bf5 {[%emt 0:00:07]} 6. e3 {[%emt 0:01:19]} e6 {[%emt 0:00:04]} 7. Bxc4 {[%emt 0:00:04]} Bb4 {[%emt 0:00:09]} 8. O-O {[%emt 0:00:05]} O-O {[%emt 0:00:04]} 9. Nh4 {[%emt 0:00:36]} Bg4 {[%emt 0:01:05]} 10. f3 {[%emt 0:00:12]} Bh5 {[%emt 0:00:20]} 11. g4 {[%emt 0:04:03]} Nd5 {[%emt 0:01:23]} 12. Ng2 {[%emt 0:08:14]} Bg6 {[%emt 0:01:41]} 13. Na2 {[%emt 0:00:08]} Be7 {[%emt 0:01:55]} 14. e4 {[%emt 0:02:24]} Nb6 {[%emt 0:04:14]} 15. Bb3 {[%emt 0:00:12]} a5 {[%emt 0:02:03]} 16. Be3 {[%emt 0:01:27]} Na6 {[%emt 0:00:21]} 17. Rc1 {[%emt 0:04:00]} c5 {[%emt 0:03:27]} 18. dxc5 {[%emt 0:02:05]} Nd7 {[%emt 0:00:43]} 19. c6 {[%emt 0:07:42]} bxc6 {[%emt 0:00:31]} 20. Rxc6 {[%emt 0:00:11]} Qe8 {[%emt 0:01:21]} 21. h4 {[%emt 0:14:06]} h5 {[%emt 0:05:12]} 22. gxh5 {[%emt 0:04:25]} Bxh5 {[%emt 0:00:13]} 23. Nf4 {[%emt 0:00:09]} Nf6 {[%emt 0:01:14]} 24. Rxa6 {[%emt 0:00:54]} Rxa6 {[%emt 0:01:30]} 25. e5 {[%emt 0:00:01]} Nd5 {[%emt 1:14:49]} 26. Bxd5 {[%emt 0:02:43]} exd5 {[%emt 0:00:00]} 27. Nxh5 {[%emt 0:01:01]} Bxh4 {[%emt 0:00:00]} 28. Qd4 {[%emt 0:01:38]} Bd8 {[%emt 0:00:00]} 29. Kf2 {[%emt 0:02:26]} Bb6 {[%emt 0:00:00]} 30. Nf6+ {[%emt 0:00:39]} 1-0

[Event "GM ZIA Smirity-A 2025"]
[Site "Dhaka"]
[Date "2025.02.20"]
[Round "6.6"]
[White "Ghosh, Chanchal Kumer"]
[Black "Khan, Nazrana"]
[Result "1-0"]
[Annotator "RC"]
[ECO "B23"]
[WhiteElo "2041"]
[BlackElo "1840"]
[PlyCount "93"]
[EventDate "2025.02.17"]
[EventType "swiss"]
[EventCountry "BAN"]
[SourceTitle "playchess.com"]
[Source "ChessBase"]
[SourceQuality "1"]
[TimeControl "5400+30"]

1. e4 {[%emt 0:24:39]} c5 {[%emt 0:00:07]} 2. Nf3 {[%emt 0:00:08]} e6 {[%emt 0:00:04]} 3. Nc3 {[%emt 0:00:41]} Nc6 {[%emt 0:01:15]} 4. g3 {[%emt 0:00:36]} g6 {[%emt 0:00:24]} 5. d4 {[%emt 0:01:16]} cxd4 {[%emt 0:00:48]} 6. Nxd4 {[%emt 0:00:04]} Bg7 {[%emt 0:00:45]} 7. Ndb5 {[%emt 0:00:50]} a6 {[%emt 0:06:29]} 8. Nd6+ {[%emt 0:03:39]} Kf8 {[%emt 0:05:44]} 9. Be3 {[%emt 0:03:25]} Nge7 {[%emt 0:01:42]} 10. f4 {[%emt 0:03:54]} f5 {[%emt 0:07:20]} 11. e5 {[%emt 0:02:53]} h5 {[%emt 0:14:01]} 12. Qd2 {[%emt 0:01:01]} Rh7 {[%emt 0:03:31]} 13. O-O-O {[%emt 0:02:39]} Bh6 {[%emt 0:00:35]} 14. Qf2 {[%emt 0:01:22]} Kg8 {[%emt 0:03:05]} 15. Bb6 {[%emt 0:00:57]} Qf8 {[%emt 0:00:29]} 16. Kb1 {[%emt 0:00:46]} g5 {[%emt 0:07:49]} 17. Bc4 {[%emt 0:05:18]} Kh8 {[%emt 0:04:48]} 18. a3 {[%emt 0:02:33]} Ng6 {[%emt 0:01:27]} 19. Ne2 {[%emt 0:03:14]} h4 {[%emt 0:03:07]} 20. Bb3 {[%emt 0:05:04]} h3 {[%emt 0:00:56]} 21. Rd3 {[%emt 0:01:01]} g4 {[%emt 0:02:37]} 22. Rhd1 {[%emt 0:01:56]} Rg7 {[%emt 0:08:48]} 23. Qc5 {[%emt 0:01:58]} Kh7 {[%emt 0:01:02]} 24. Nd4 {[%emt 0:04:56]} Qh8 {[%emt 0:03:56]} 25. a4 {[%emt 0:02:27]} Re7 {[%emt 0:04:14]} 26. Ba2 {[%emt 0:02:29]} Bf8 {[%emt 0:03:45]} 27. b4 {[%emt 0:03:10]} Rg7 {[%emt 0:01:32]} 28. Nb3 {[%emt 0:01:37]} Bxd6 {[%emt 0:03:18]} 29. Rxd6 {[%emt 0:02:23]} Qf8 {[%emt 0:00:39]} 30. b5 {[%emt 0:01:55]} Nce7 {[%emt 0:00:53]} 31. R1d3 {[%emt 0:02:25]} axb5 {[%emt 0:03:02]} 32. axb5 {[%emt 0:00:13]} Nd5 {[%emt 0:03:35]} 33. R3xd5 {[%emt 0:00:42]} exd5 {[%emt 0:00:05]} 34. Rxg6 {[%emt 0:00:19]} Qxc5 {[%emt 0:00:28]} 35. Rxg7+ {[%emt 0:00:13]} Kxg7 {[%emt 0:00:07]} 36. Nxc5 {[%emt 0:00:18]} Ra3 {[%emt 0:00:51]} 37. Bb3 {[%emt 0:01:22]} Kg6 {[%emt 0:02:51]} 38. Na4 {[%emt 0:00:49]} d6 {[%emt 0:01:22]} 39. exd6 {[%emt 0:00:31]} Bd7 {[%emt 0:01:28]} 40. Kb2 {[%emt 0:00:14]} Rxa4 {[%emt 0:00:20]} 41. Bxa4 {[%emt 0:00:13]} Kf6 {[%emt 0:00:16]} 42. Kc3 {[%emt 0:00:29]} Ke6 {[%emt 0:00:43]} 43. Bc5 {[%emt 0:00:19]} Be8 {[%emt 0:00:46]} 44. Kd4 {[%emt 0:00:08]} b6 {[%emt 0:00:43]} 45. Bxb6 {[%emt 0:15:54]} Kxd6 {[%emt 0:00:12]} 46. Bc5+ {[%emt 0:00:00]} Ke6 {[%emt 0:00:34]} 47. b6 {[%emt 0:01:00]} 1-0